[Event "European Online Club-ch-A 2021"]
[Site "Online"]
[Date "2021.03.27"]
[Round "2.8"]
[White "Wintzer, Joachim"]
[Black "Royal, Shreyas"]
[Result "1-0"]
[ECO "E70"]
[WhiteElo "2274"]
[BlackElo "2121"]
[Annotator "NA"]
[PlyCount "93"]
[EventDate "2021.03.27"]
[EventType "team-tourn"]
[EventCountry "NET"]
[SourceTitle "playchess.com"]
[Source "ChessBase"]
[SourceQuality "1"]
[TimeControl "900+5"]

1. d4 {[%emt 0:00:00]} Nf6 {[%emt 0:00:07]} 2. c4 {[%emt 0:00:04]} g6 {[%emt 0:00:08]} 3. Nc3 {[%emt 0:00:02]} Bg7 {[%emt 0:00:01]} 4. e4 {[%emt 0:00:04]} d6 {[%emt 0:00:03]} 5. Bd3 {[%emt 0:00:16]} O-O {[%emt 0:00:46]} 6. Nge2 {[%emt 0:00:02]} e5 {[%emt 0:00:29]} 7. d5 {[%emt 0:00:10]} a5 {[%emt 0:00:05]} 8. f3 {[%emt 0:02:06]} Na6 {[%emt 0:00:54]} 9. Bg5 {[%emt 0:00:15]} h6 {[%emt 0:00:44]} 10. Be3 {[%emt 0:00:07]} Nc5 {[%emt 0:00:15]} 11. Bc2 {[%emt 0:00:02]} Nh7 {[%emt 0:00:04]} 12. Qd2 {[%emt 0:00:03]} f5 {[%emt 0:00:02]} 13. exf5 {[%emt 0:00:12]} Bxf5 {[%emt 0:00:26]} 14. O-O {[%emt 0:00:27]} Qh4 {[%emt 0:00:55]} 15. b3 {[%emt 0:00:58]} Rae8 {[%emt 0:01:01]} 16. Ng3 {[%emt 0:00:13]} e4 {[%emt 0:01:22]} 17. fxe4 {[%emt 0:00:33]} Nxe4 {[%emt 0:02:18]} 18. Ngxe4 {[%emt 0:03:48]} Bxe4 {[%emt 0:00:29]} 19. Nxe4 {[%emt 0:00:51]} Bxa1 {[%emt 0:00:05]} 20. Rxa1 {[%emt 0:00:03]} Rxe4 {[%emt 0:00:09]} 21. Bxe4 {[%emt 0:00:02]} Qxe4 {[%emt 0:00:03]} 22. Bxh6 {[%emt 0:00:05]} Re8 {[%emt 0:00:07]} 23. Rf1 {[%emt 0:00:02]} a4 {[%emt 0:00:25]} 24. Qf2 {[%emt 0:00:25]} Re7 {[%emt 0:01:21]} 25. h3 {[%emt 0:00:22]} g5 {[%emt 0:00:55]} 26. Qf5 {[%emt 0:02:17]} Qxf5 {[%emt 0:00:07]} 27. Rxf5 {[%emt 0:00:01]} Re1+ {[%emt 0:00:32]} 28. Kh2 {[%emt 0:00:11]} Re2 {[%emt 0:00:02]} 29. bxa4 {[%emt 0:01:12]} Rxa2 {[%emt 0:00:05]} 30. Bxg5 {[%emt 0:00:01]} Rxa4 {[%emt 0:00:02]} 31. c5 {[%emt 0:00:30]} Nxg5 {[%emt 0:00:44]} 32. Rxg5+ {[%emt 0:00:02]} Kf7 {[%emt 0:00:07]} 33. cxd6 {[%emt 0:00:05]} cxd6 {[%emt 0:00:03]} 34. Rf5+ {[%emt 0:00:11]} Kg6 {[%emt 0:00:05]} 35. Rf3 {[%emt 0:00:12]} Rb4 {[%emt 0:00:07]} 36. Re3 {[%emt 0:00:06]} Kf7 {[%emt 0:00:25]} 37. g4 {[%emt 0:00:14]} Rb5 {[%emt 0:00:08]} 38. Rf3+ {[%emt 0:00:20]} Kg7 {[%emt 0:00:14]} 39. Rf5 {[%emt 0:00:04]} Rb3 {[%emt 0:00:04]} 40. h4 {[%emt 0:00:07]} b5 {[%emt 0:00:05]} 41. h5 {[%emt 0:00:15]} Rd3 {[%emt 0:00:11]} 42. g5 {[%emt 0:00:04]} b4 {[%emt 0:00:10]} 43. g6 {[%emt 0:00:01]} b3 {[%emt 0:01:21]} 44. Rf7+ {[%emt 0:00:03]} Kh8 {[%emt 0:00:01]} 45. h6 {[%emt 0:00:02]} Rd2+ {[%emt 0:00:06]} 46. Kg3 {[%emt 0:00:04]} Rd3+ {[%emt 0:00:02]} 47. Kf2 {[%emt 0:00:07]} 1-0

[Event "European Online Club-ch-A 2021"]
[Site "Online"]
[Date "2021.03.27"]
[Round "2.9"]
[White "Celik, Hasan Huseyin"]
[Black "Hera, Imre Jr."]
[Result "1/2-1/2"]
[ECO "A45"]
[WhiteElo "2173"]
[BlackElo "2610"]
[Annotator "ChessBase"]
[PlyCount "115"]
[EventDate "2021.03.27"]
[EventType "team-tourn"]
[EventCountry "NET"]
[SourceTitle "playchess.com"]
[Source "ChessBase"]
[SourceQuality "1"]
[TimeControl "900+5"]

1. d4 {[%emt 0:00:00]} Nf6 {[%emt 0:00:05]} 2. Bg5 {[%emt 0:00:07]} e6 {[%emt 0:00:04]} 3. e4 {[%emt 0:00:09]} h6 {[%emt 0:00:02]} 4. Bxf6 {[%emt 0:00:02]} Qxf6 {[%emt 0:00:02]} 5. c3 {[%emt 0:00:01]} e5 {[%emt 0:00:08]} 6. Bc4 {[%emt 0:01:43]} Qg6 {[%emt 0:00:58]} 7. Qf3 {[%emt 0:01:51]} Nc6 {[%emt 0:00:26]} 8. Ne2 {[%emt 0:00:12]} d6 {[%emt 0:00:05]} 9. Bb5 {[%emt 0:00:12]} Be7 {[%emt 0:00:39]} 10. dxe5 {[%emt 0:00:38]} dxe5 {[%emt 0:00:05]} 11. Nd2 {[%emt 0:00:15]} O-O {[%emt 0:00:05]} 12. Qg3 {[%emt 0:00:10]} Bg5 {[%emt 0:00:11]} 13. Nf3 {[%emt 0:00:31]} Qxe4 {[%emt 0:00:18]} 14. Nxg5 {[%emt 0:00:20]} hxg5 {[%emt 0:00:03]} 15. Qxg5 {[%emt 0:00:35]} Be6 {[%emt 0:00:22]} 16. O-O {[%emt 0:00:42]} f6 {[%emt 0:00:24]} 17. Qg3 {[%emt 0:00:45]} Rad8 {[%emt 0:00:30]} 18. Rfd1 {[%emt 0:01:31]} Rxd1+ {[%emt 0:01:53]} 19. Rxd1 {[%emt 0:00:02]} Qc2 {[%emt 0:00:04]} 20. Qd3 {[%emt 0:00:15]} Qxd3 {[%emt 0:01:47]} 21. Rxd3 {[%emt 0:00:06]} Bxa2 {[%emt 0:00:02]} 22. Bxc6 {[%emt 0:00:42]} bxc6 {[%emt 0:00:07]} 23. Rd2 {[%emt 0:00:05]} Bc4 {[%emt 0:00:41]} 24. Ng3 {[%emt 0:00:04]} Be6 {[%emt 0:00:39]} 25. f3 {[%emt 0:00:06]} Kf7 {[%emt 0:00:04]} 26. Kf2 {[%emt 0:00:03]} Ke7 {[%emt 0:00:02]} 27. Ne4 {[%emt 0:00:10]} a5 {[%emt 0:00:37]} 28. h4 {[%emt 0:00:31]} Rb8 {[%emt 0:00:15]} 29. g4 {[%emt 0:00:08]} Rb5 {[%emt 0:00:13]} 30. Ke3 {[%emt 0:00:04]} c5 {[%emt 0:00:22]} 31. h5 {[%emt 0:00:09]} c4 {[%emt 0:00:04]} 32. g5 {[%emt 0:00:11]} f5 {[%emt 0:00:33]} 33. Nf2 {[%emt 0:00:46]} Rb8 {[%emt 0:01:52]} 34. Nd1 {[%emt 0:00:42]} Rh8 {[%emt 0:00:23]} 35. Rh2 {[%emt 0:00:04]} Bf7 {[%emt 0:00:01]} 36. h6 {[%emt 0:00:02]} gxh6 {[%emt 0:00:11]} 37. gxh6 {[%emt 0:00:01]} f4+ {[%emt 0:00:13]} 38. Ke2 {[%emt 0:00:27]} Kf6 {[%emt 0:01:34]} 39. Nf2 {[%emt 0:00:04]} Kg5 {[%emt 0:00:06]} 40. Rg2+ {[%emt 0:01:00]} Kf5 {[%emt 0:00:09]} 41. Rg7 {[%emt 0:00:40]} Bh5 {[%emt 0:00:43]} 42. Rxc7 {[%emt 0:01:27]} Rxh6 {[%emt 0:00:02]} 43. Rxc4 {[%emt 0:00:05]} Rb6 {[%emt 0:00:13]} 44. Nd3 {[%emt 0:00:04]} Kf6 {[%emt 0:00:24]} 45. Rc5 {[%emt 0:00:13]} Bg6 {[%emt 0:00:16]} 46. Rxa5 {[%emt 0:00:18]} Bxd3+ {[%emt 0:00:02]} 47. Kxd3 {[%emt 0:00:04]} Rxb2 {[%emt 0:00:02]} 48. Ra6+ {[%emt 0:00:16]} Kf5 {[%emt 0:00:05]} 49. Ra8 {[%emt 0:00:02]} Rf2 {[%emt 0:00:03]} 50. Rf8+ {[%emt 0:00:04]} Ke6 {[%emt 0:00:12]} 51. Re8+ {[%emt 0:00:02]} Kd6 {[%emt 0:00:13]} 52. Ke4 {[%emt 0:00:06]} Re2+ {[%emt 0:00:02]} 53. Kf5 {[%emt 0:00:02]} Re3 {[%emt 0:00:02]} 54. c4 {[%emt 0:00:01]} Rxf3 {[%emt 0:00:12]} 55. Rxe5 {[%emt 0:00:03]} Rc3 {[%emt 0:00:02]} 56. Kxf4 {[%emt 0:00:03]} Rxc4+ {[%emt 0:00:02]} 57. Re4 {[%emt 0:00:01]} Rxe4+ {[%emt 0:00:02]} 58. Kxe4 {[%emt 0:00:01]} 1/2-1/2

[Event "European Online Club-ch-A 2021"]
[Site "Online"]
[Date "2021.03.27"]
[Round "2.10"]
[White "Nemeth, Miklos"]
[Black "Durak, Can"]
[Result "1/2-1/2"]
[ECO "C50"]
[WhiteElo "2488"]
[BlackElo "2187"]
[Annotator "ChessBase"]
[PlyCount "79"]
[EventDate "2021.03.27"]
[EventType "team-tourn"]
[EventCountry "NET"]
[SourceTitle "playchess.com"]
[Source "ChessBase"]
[SourceQuality "1"]
[TimeControl "900+5"]

1. e4 {[%emt 0:00:00]} e5 {[%emt 0:00:07]} 2. Nf3 {[%emt 0:00:03]} Nc6 {[%emt 0:00:03]} 3. Bc4 {[%emt 0:00:02]} Bc5 {[%emt 0:00:04]} 4. O-O {[%emt 0:00:02]} Nf6 {[%emt 0:00:07]} 5. d4 {[%emt 0:00:02]} Bxd4 {[%emt 0:00:07]} 6. Nxd4 {[%emt 0:00:02]} Nxd4 {[%emt 0:00:03]} 7. f4 {[%emt 0:00:01]} d6 {[%emt 0:00:26]} 8. fxe5 {[%emt 0:00:02]} dxe5 {[%emt 0:00:02]} 9. Bg5 {[%emt 0:00:02]} Ne6 {[%emt 0:00:23]} 10. Qxd8+ {[%emt 0:00:46]} Kxd8 {[%emt 0:00:11]} 11. Bxf6+ {[%emt 0:00:20]} gxf6 {[%emt 0:00:03]} 12. Nc3 {[%emt 0:00:09]} c6 {[%emt 0:03:43]} 13. Rxf6 {[%emt 0:00:17]} b5 {[%emt 0:00:12]} 14. Bb3 {[%emt 0:00:12]} Ke7 {[%emt 0:00:11]} 15. Raf1 {[%emt 0:00:05]} Rf8 {[%emt 0:00:56]} 16. Rh6 {[%emt 0:00:09]} a5 {[%emt 0:00:04]} 17. a4 {[%emt 0:00:47]} b4 {[%emt 0:00:03]} 18. Nd1 {[%emt 0:00:03]} Nd4 {[%emt 0:00:47]} 19. Ne3 {[%emt 0:00:23]} Nxb3 {[%emt 0:00:53]} 20. cxb3 {[%emt 0:00:05]} Be6 {[%emt 0:00:03]} 21. Nf5+ {[%emt 0:00:19]} Bxf5 {[%emt 0:00:02]} 22. Rxf5 {[%emt 0:00:08]} f6 {[%emt 0:00:04]} 23. Rxh7+ {[%emt 0:00:03]} Rf7 {[%emt 0:00:02]} 24. Rxf7+ {[%emt 0:00:52]} Kxf7 {[%emt 0:00:02]} 25. Kf2 {[%emt 0:00:09]} Rd8 {[%emt 0:00:24]} 26. Ke3 {[%emt 0:00:02]} Rd1 {[%emt 0:00:03]} 27. Rf2 {[%emt 0:00:11]} Kg6 {[%emt 0:00:19]} 28. Rc2 {[%emt 0:00:24]} Rb1 {[%emt 0:00:03]} 29. Rf2 {[%emt 0:00:15]} Kg5 {[%emt 0:00:21]} 30. Kd3 {[%emt 0:00:09]} Kg6 {[%emt 0:00:06]} 31. g3 {[%emt 0:01:11]} Kf7 {[%emt 0:00:20]} 32. Rc2 {[%emt 0:00:21]} Rd1+ {[%emt 0:00:03]} 33. Ke3 {[%emt 0:00:16]} Rb1 {[%emt 0:00:09]} 34. h4 {[%emt 0:00:44]} Rg1 {[%emt 0:00:20]} 35. Kf3 {[%emt 0:00:05]} Rd1 {[%emt 0:00:12]} 36. Ke2 {[%emt 0:04:40]} Rg1 {[%emt 0:00:05]} 37. Kf2 {[%emt 0:00:05]} Rd1 {[%emt 0:00:04]} 38. Ke2 {[%emt 0:00:11]} Rg1 {[%emt 0:00:03]} 39. Kf2 {[%emt 0:00:01]} Rd1 {[%emt 0:00:02]} 40. Ke2 {[%emt 0:00:02]} 1/2-1/2

[Event "European Online Club-ch-A 2021"]
[Site "Online"]
[Date "2021.03.27"]
[Round "2.11"]
[White "Gurel, Ediz"]
[Black "Kovacs, Gabor"]
[Result "0-1"]
[ECO "C87"]
[WhiteElo "2168"]
[BlackElo "2455"]
[Annotator "ChessBase"]
[PlyCount "98"]
[EventDate "2021.03.27"]
[EventType "team-tourn"]
[EventCountry "NET"]
[SourceTitle "playchess.com"]
[Source "ChessBase"]
[SourceQuality "1"]
[TimeControl "900+5"]

1. e4 {[%emt 0:13:34]} e5 {[%emt 0:00:09]} 2. Nf3 {[%emt 0:00:02]} Nc6 {[%emt 0:00:02]} 3. Bb5 {[%emt 0:00:02]} a6 {[%emt 0:00:03]} 4. Ba4 {[%emt 0:00:01]} d6 {[%emt 0:00:02]} 5. c3 {[%emt 0:00:04]} Bd7 {[%emt 0:00:06]} 6. O-O {[%emt 0:00:02]} Nf6 {[%emt 0:00:02]} 7. Re1 {[%emt 0:00:02]} Be7 {[%emt 0:00:02]} 8. d4 {[%emt 0:00:02]} O-O {[%emt 0:00:02]} 9. Nbd2 {[%emt 0:00:02]} exd4 {[%emt 0:00:16]} 10. cxd4 {[%emt 0:00:02]} Nb4 {[%emt 0:00:03]} 11. Bxd7 {[%emt 0:00:07]} Qxd7 {[%emt 0:00:03]} 12. Qb3 {[%emt 0:00:16]} d5 {[%emt 0:00:20]} 13. e5 {[%emt 0:00:09]} Nh5 {[%emt 0:00:19]} 14. a3 {[%emt 0:00:08]} Nc6 {[%emt 0:00:02]} 15. Nf1 {[%emt 0:00:08]} Nd8 {[%emt 0:00:18]} 16. Qc2 {[%emt 0:00:20]} Ne6 {[%emt 0:00:16]} 17. Ne3 {[%emt 0:00:04]} Rfd8 {[%emt 0:00:35]} 18. Nf5 {[%emt 0:00:22]} Rac8 {[%emt 0:00:34]} 19. Nxe7+ {[%emt 0:00:13]} Qxe7 {[%emt 0:00:04]} 20. Qf5 {[%emt 0:00:02]} g6 {[%emt 0:00:03]} 21. Qg4 {[%emt 0:00:02]} c5 {[%emt 0:00:20]} 22. Be3 {[%emt 0:00:16]} cxd4 {[%emt 0:00:39]} 23. Nxd4 {[%emt 0:00:02]} Nxd4 {[%emt 0:00:02]} 24. Bxd4 {[%emt 0:00:05]} Qe6 {[%emt 0:00:03]} 25. Qf3 {[%emt 0:00:14]} Ng7 {[%emt 0:00:27]} 26. Be3 {[%emt 0:00:12]} Qf5 {[%emt 0:00:33]} 27. Qg3 {[%emt 0:00:12]} Ne6 {[%emt 0:00:04]} 28. Rad1 {[%emt 0:00:16]} d4 {[%emt 0:00:12]} 29. Bh6 {[%emt 0:00:02]} Rc2 {[%emt 0:00:09]} 30. Rd2 {[%emt 0:00:09]} Rdc8 {[%emt 0:00:14]} 31. h4 {[%emt 0:00:14]} Rxd2 {[%emt 0:00:42]} 32. Bxd2 {[%emt 0:00:02]} Rc2 {[%emt 0:00:02]} 33. Bg5 {[%emt 0:00:01]} Rxb2 {[%emt 0:00:19]} 34. Bf6 {[%emt 0:00:07]} Rb1 {[%emt 0:00:35]} 35. Rxb1 {[%emt 0:00:06]} Qxb1+ {[%emt 0:00:03]} 36. Kh2 {[%emt 0:00:01]} Qe4 {[%emt 0:00:19]} 37. Qb3 {[%emt 0:00:13]} h6 {[%emt 0:00:42]} 38. Qc4 {[%emt 0:00:05]} Qc6 {[%emt 0:00:09]} 39. Qb4 {[%emt 0:00:05]} Qd7 {[%emt 0:00:09]} 40. Qd2 {[%emt 0:00:04]} Kh7 {[%emt 0:00:05]} 41. h5 {[%emt 0:00:01]} d3 {[%emt 0:00:11]} 42. hxg6+ {[%emt 0:00:01]} fxg6 {[%emt 0:00:04]} 43. g3 {[%emt 0:00:09]} Qd4 {[%emt 0:00:11]} 44. Kg2 {[%emt 0:00:04]} g5 {[%emt 0:00:18]} 45. f3 {[%emt 0:00:06]} Kg6 {[%emt 0:00:05]} 46. Kh2 {[%emt 0:00:08]} Qc4 {[%emt 0:00:24]} 47. Qa5 {[%emt 0:00:10]} Qc2+ {[%emt 0:00:09]} 48. Kh3 {[%emt 0:00:01]} d2 {[%emt 0:00:07]} 49. Qb6 {[%emt 0:00:03]} Qf5+ {[%emt 0:00:18]} 0-1

[Event "European Online Club-ch-A 2021"]
[Site "Online"]
[Date "2021.03.27"]
[Round "2.12"]
[White "Csonka, Attila Istvan"]
[Black "Tinmaz, Kerem"]
[Result "1/2-1/2"]
[ECO "C00"]
[WhiteElo "2362"]
[BlackElo "1614"]
[Annotator "NA"]
[PlyCount "155"]
[EventDate "2021.03.27"]
[EventType "team-tourn"]
[EventCountry "NET"]
[SourceTitle "playchess.com"]
[Source "ChessBase"]
[SourceQuality "1"]
[TimeControl "900+5"]

1. e4 {[%emt 0:00:00]} c5 {[%emt 0:00:03]} 2. Nf3 {[%emt 0:00:04]} e6 {[%emt 0:00:02]} 3. b3 {[%emt 0:00:03]} Nf6 {[%emt 0:00:14]} 4. Qe2 {[%emt 0:00:03]} Nc6 {[%emt 0:00:07]} 5. Bb2 {[%emt 0:00:03]} Be7 {[%emt 0:00:05]} 6. g3 {[%emt 0:00:06]} O-O {[%emt 0:00:06]} 7. Bg2 {[%emt 0:00:02]} d6 {[%emt 0:00:09]} 8. O-O {[%emt 0:00:03]} Bd7 {[%emt 0:00:02]} 9. d4 {[%emt 0:00:03]} cxd4 {[%emt 0:00:06]} 10. Nxd4 {[%emt 0:00:02]} Nxd4 {[%emt 0:00:09]} 11. Bxd4 {[%emt 0:00:02]} Bc6 {[%emt 0:00:10]} 12. c4 {[%emt 0:00:10]} Re8 {[%emt 0:00:32]} 13. Bb2 {[%emt 0:02:08]} Qb6 {[%emt 0:01:08]} 14. Nc3 {[%emt 0:00:13]} Rad8 {[%emt 0:00:14]} 15. Rad1 {[%emt 0:00:21]} h6 {[%emt 0:00:46]} 16. Kh1 {[%emt 0:00:32]} a6 {[%emt 0:01:17]} 17. Rd2 {[%emt 0:00:25]} Qc7 {[%emt 0:00:32]} 18. Rfd1 {[%emt 0:00:16]} Bf8 {[%emt 0:01:18]} 19. h3 {[%emt 0:00:44]} g6 {[%emt 0:00:52]} 20. Nb5 {[%emt 0:00:37]} axb5 {[%emt 0:00:26]} 21. Bxf6 {[%emt 0:00:04]} Rc8 {[%emt 0:01:21]} 22. cxb5 {[%emt 0:00:13]} Bd7 {[%emt 0:00:07]} 23. a4 {[%emt 0:00:15]} e5 {[%emt 0:01:07]} 24. g4 {[%emt 0:01:36]} Qc3 {[%emt 0:00:57]} 25. Rd3 {[%emt 0:00:34]} Qb4 {[%emt 0:00:36]} 26. Qe3 {[%emt 0:00:25]} Kh7 {[%emt 0:00:37]} 27. Bf3 {[%emt 0:00:32]} Rc2 {[%emt 0:00:26]} 28. Kg2 {[%emt 0:00:45]} Be6 {[%emt 0:00:13]} 29. Qb6 {[%emt 0:01:53]} Qc5 {[%emt 0:01:23]} 30. Qxc5 {[%emt 0:00:12]} Rxc5 {[%emt 0:00:01]} 31. g5 {[%emt 0:00:51]} h5 {[%emt 0:00:19]} 32. R1d2 {[%emt 0:00:10]} Rec8 {[%emt 0:00:03]} 33. Bd1 {[%emt 0:00:05]} Rc3 {[%emt 0:00:07]} 34. h4 {[%emt 0:00:06]} Kg8 {[%emt 0:00:34]} 35. Rxd6 {[%emt 0:00:56]} Bxd6 {[%emt 0:00:07]} 36. Rxd6 {[%emt 0:00:05]} Bxb3 {[%emt 0:00:22]} 37. Bxe5 {[%emt 0:00:14]} Bxd1 {[%emt 0:00:38]} 38. Bxc3 {[%emt 0:00:05]} Rxc3 {[%emt 0:00:10]} 39. Rxd1 {[%emt 0:00:04]} Rc4 {[%emt 0:00:05]} 40. Kf3 {[%emt 0:00:03]} Rxa4 {[%emt 0:00:05]} 41. Rd8+ {[%emt 0:00:07]} Kg7 {[%emt 0:00:02]} 42. Rb8 {[%emt 0:00:06]} Ra3+ {[%emt 0:00:18]} 43. Kg2 {[%emt 0:00:05]} Ra4 {[%emt 0:00:12]} 44. f3 {[%emt 0:00:02]} Ra2+ {[%emt 0:00:05]} 45. Kg3 {[%emt 0:00:02]} Ra1 {[%emt 0:00:12]} 46. Rxb7 {[%emt 0:00:05]} Rg1+ {[%emt 0:00:02]} 47. Kh2 {[%emt 0:00:03]} Rf1 {[%emt 0:00:07]} 48. Kg2 {[%emt 0:00:01]} Rb1 {[%emt 0:00:03]} 49. b6 {[%emt 0:00:02]} Rb2+ {[%emt 0:00:02]} 50. Kg3 {[%emt 0:00:02]} Rb1 {[%emt 0:00:08]} 51. Rb8 {[%emt 0:00:04]} Rb2 {[%emt 0:00:08]} 52. b7 {[%emt 0:00:04]} Rb1 {[%emt 0:00:13]} 53. Kf4 {[%emt 0:00:03]} Rb3 {[%emt 0:00:04]} 54. Ke5 {[%emt 0:00:02]} Rb1 {[%emt 0:00:05]} 55. f4 {[%emt 0:00:06]} Rb5+ {[%emt 0:00:06]} 56. Kd6 {[%emt 0:00:04]} Rb1 {[%emt 0:00:03]} 57. f5 {[%emt 0:00:02]} Rd1+ {[%emt 0:00:05]} 58. Ke5 {[%emt 0:00:18]} Rb1 {[%emt 0:00:03]} 59. fxg6 {[%emt 0:00:12]} fxg6 {[%emt 0:00:05]} 60. Kd5 {[%emt 0:00:07]} Rd1+ {[%emt 0:00:07]} 61. Ke6 {[%emt 0:00:01]} Rb1 {[%emt 0:00:02]} 62. e5 {[%emt 0:00:02]} Rb6+ {[%emt 0:00:04]} 63. Kd5 {[%emt 0:00:10]} Rb1 {[%emt 0:00:02]} 64. e6 {[%emt 0:00:01]} Rd1+ {[%emt 0:00:12]} 65. Kc4 {[%emt 0:00:02]} Rc1+ {[%emt 0:00:02]} 66. Kd3 {[%emt 0:00:01]} Rb1 {[%emt 0:00:06]} 67. Rd8 {[%emt 0:00:03]} Rd1+ {[%emt 0:00:05]} 68. Kc4 {[%emt 0:00:08]} Rxd8 {[%emt 0:00:02]} 69. Kc5 {[%emt 0:00:07]} Kf8 {[%emt 0:00:05]} 70. Kc6 {[%emt 0:00:07]} Ke7 {[%emt 0:00:14]} 71. Kc7 {[%emt 0:00:12]} Rh8 {[%emt 0:00:07]} 72. b8=Q {[%emt 0:00:03]} Rxb8 {[%emt 0:00:02]} 73. Kxb8 {[%emt 0:00:02]} Kxe6 {[%emt 0:00:03]} 74. Kc7 {[%emt 0:00:01]} Ke7 {[%emt 0:00:08]} 75. Kc6 {[%emt 0:00:05]} Ke6 {[%emt 0:00:01]} 76. Kc7 {[%emt 0:00:01]} Ke7 {[%emt 0:00:08]} 77. Kc6 {[%emt 0:00:02]} Ke6 {[%emt 0:00:01]} 78. Kc7 {[%emt 0:00:02]} 1/2-1/2

[Event "European Online Club-ch-A 2021"]
[Site "Online"]
[Date "2021.03.27"]
[Round "2.13"]
[White "Finek, Vaclav"]
[Black "Deac, Bogdan-Daniel"]
[Result "0-1"]
[ECO "D29"]
[WhiteElo "2361"]
[BlackElo "2625"]
[Annotator "ChessBase"]
[PlyCount "116"]
[EventDate "2021.03.27"]
[EventType "team-tourn"]
[EventCountry "NET"]
[SourceTitle "playchess.com"]
[Source "ChessBase"]
[SourceQuality "1"]
[TimeControl "900+5"]

1. d4 {[%emt 0:00:00]} Nf6 {[%emt 0:00:34]} 2. Nf3 {[%emt 0:00:08]} d5 {[%emt 0:00:15]} 3. c4 {[%emt 0:00:05]} e6 {[%emt 0:00:02]} 4. Nc3 {[%emt 0:00:11]} dxc4 {[%emt 0:00:02]} 5. e3 {[%emt 0:00:09]} a6 {[%emt 0:00:02]} 6. Bxc4 {[%emt 0:00:10]} b5 {[%emt 0:00:03]} 7. Bb3 {[%emt 0:00:02]} Bb7 {[%emt 0:00:02]} 8. O-O {[%emt 0:00:29]} Nbd7 {[%emt 0:00:08]} 9. a4 {[%emt 0:00:22]} b4 {[%emt 0:00:36]} 10. Nb1 {[%emt 0:00:11]} c5 {[%emt 0:02:01]} 11. Qe2 {[%emt 0:03:35]} Be7 {[%emt 0:03:19]} 12. Rd1 {[%emt 0:01:59]} O-O {[%emt 0:00:07]} 13. Nbd2 {[%emt 0:00:36]} Qc7 {[%emt 0:02:48]} 14. Nc4 {[%emt 0:02:56]} a5 {[%emt 0:00:56]} 15. Bd2 {[%emt 0:00:55]} Ba6 {[%emt 0:00:10]} 16. Rac1 {[%emt 0:00:03]} Nb6 {[%emt 0:00:39]} 17. Qe1 {[%emt 0:00:58]} Bxc4 {[%emt 0:00:39]} 18. Bxc4 {[%emt 0:00:03]} Nxa4 {[%emt 0:00:01]} 19. Rc2 {[%emt 0:00:28]} cxd4 {[%emt 0:00:29]} 20. Bb3 {[%emt 0:00:13]} Qd7 {[%emt 0:00:02]} 21. Ne5 {[%emt 0:00:09]} Qe8 {[%emt 0:00:23]} 22. exd4 {[%emt 0:00:08]} Nb6 {[%emt 0:00:05]} 23. Nxf7 {[%emt 0:00:17]} Rxf7 {[%emt 0:00:08]} 24. Qxe6 {[%emt 0:00:04]} a4 {[%emt 0:00:04]} 25. Qxf7+ {[%emt 0:00:41]} Qxf7 {[%emt 0:00:03]} 26. Bxf7+ {[%emt 0:00:02]} Kxf7 {[%emt 0:00:01]} 27. Rcc1 {[%emt 0:00:11]} Nfd5 {[%emt 0:00:24]} 28. g3 {[%emt 0:00:20]} b3 {[%emt 0:02:38]} 29. Kg2 {[%emt 0:00:07]} a3 {[%emt 0:00:06]} 30. bxa3 {[%emt 0:00:02]} Rxa3 {[%emt 0:00:34]} 31. Rb1 {[%emt 0:00:10]} Nc4 {[%emt 0:00:06]} 32. Bc1 {[%emt 0:00:12]} Nc3 {[%emt 0:00:05]} 33. Bxa3 {[%emt 0:00:02]} Nxa3 {[%emt 0:00:02]} 34. Rxb3 {[%emt 0:00:14]} Nxd1 {[%emt 0:00:01]} 35. d5 {[%emt 0:00:48]} Nc4 {[%emt 0:00:02]} 36. h4 {[%emt 0:00:16]} Ndb2 {[%emt 0:00:06]} 37. Rf3+ {[%emt 0:00:20]} Ke8 {[%emt 0:00:03]} 38. h5 {[%emt 0:00:08]} Na4 {[%emt 0:00:05]} 39. Rf4 {[%emt 0:00:07]} Nab6 {[%emt 0:00:03]} 40. Rg4 {[%emt 0:00:02]} Bf6 {[%emt 0:00:06]} 41. h6 {[%emt 0:00:07]} g6 {[%emt 0:00:06]} 42. Re4+ {[%emt 0:00:06]} Kf7 {[%emt 0:00:07]} 43. g4 {[%emt 0:00:10]} Nd6 {[%emt 0:00:08]} 44. Re3 {[%emt 0:00:08]} Nxd5 {[%emt 0:00:05]} 45. Rf3 {[%emt 0:00:02]} g5 {[%emt 0:00:02]} 46. Kf1 {[%emt 0:00:03]} Nc4 {[%emt 0:00:09]} 47. Kg1 {[%emt 0:00:08]} Ne5 {[%emt 0:00:03]} 48. Rg3 {[%emt 0:00:03]} Nf4 {[%emt 0:00:02]} 49. Kf1 {[%emt 0:00:02]} Kg6 {[%emt 0:00:04]} 50. Ra3 {[%emt 0:00:03]} Nxg4 {[%emt 0:00:01]} 51. Ra6 {[%emt 0:00:03]} Nxh6 {[%emt 0:00:03]} 52. Rc6 {[%emt 0:00:03]} Nf5 {[%emt 0:00:01]} 53. Ra6 {[%emt 0:00:02]} g4 {[%emt 0:00:03]} 54. Ra4 {[%emt 0:00:02]} Kg5 {[%emt 0:00:02]} 55. Kg1 {[%emt 0:00:05]} h5 {[%emt 0:00:03]} 56. Rc4 {[%emt 0:00:09]} Bd4 {[%emt 0:00:04]} 57. Kf1 {[%emt 0:00:08]} Nh3 {[%emt 0:00:06]} 58. f3 {[%emt 0:00:14]} Ne3+ {[%emt 0:00:02]} 0-1